fUST/lending_fUST_20250506
["ID","MTS","AMOUNT","RATE_DAILY","PERIOD"]
[360013759,1746478271889,-400.0,0.00035616,8]
[360013760,1746478271898,-1817.46,0.00035616,8]
[360013761,1746478271908,-436.25,0.00035616,8]
[360013762,1746478271918,-400.0,0.00035616,8]
[360013763,1746478271928,-460.72,0.00035616,8]
[360013764,1746478271938,-3933.64,0.00035616,8]
[360013765,1746478271947,-491.82,0.00035616,8]
[360013766,1746478271957,-21455.99,0.00035616,8]
[360013767,1746478271971,-400.0,0.00035616,8]
[360013768,1746478271981,-400.0,0.00035616,8]
[360013769,1746478271990,-400.0,0.00035616,8]
[360013770,1746478272000,-699.19,0.00035616,8]
[360013771,1746478272010,-2258.67,0.00035616,8]
[360013772,1746478272021,-518.32,0.00035616,8]
[360013773,1746478272031,-866.11,0.00035616,8]
[360013774,1746478272042,-568.11,0.00035616,8]
[360013775,1746478272051,-1754.39,0.00035616,8]
[360013776,1746478272060,-493.11,0.00035616,8]
[360013777,1746478272070,-2851.87,0.00035616,8]
[360013778,1746478272080,-2650.13,0.00035616,8]
[360013779,1746478272089,-400.76,0.00035616,8]
[360013780,1746478272099,-400.0,0.00035616,8]
[360013781,1746478272109,-1576.25,0.00035616,8]
[360013782,1746478272119,-1372.78,0.00035616,8]
[360013783,1746478272129,-330.60972505,0.00035616,8]
[360013784,1746478272139,-999.53,0.00035616,8]
[360013785,1746478272149,-400.0,0.00035616,8]
[360013786,1746478272159,-516.04,0.00035616,8]
[360013787,1746478272169,-1376.17,0.00035616,8]
[360013788,1746478272179,-661.72,0.00035616,8]
[360013789,1746478272189,-6359.3,0.00035616,8]
[360013790,1746478272198,-940.89,0.00035616,8]
[360013791,1746478272208,-8405.77,0.00035616,8]
[360013792,1746478272217,-1110.72,0.00035616,8]
[360013793,1746478272227,-1647.64,0.00035616,8]
[360013794,1746478272237,-487.22,0.00035616,8]
[360013795,1746478272247,-445.695408,0.00035616,14]
[360013796,1746478272256,-445.695408,0.00035616,14]
[360013797,1746478272266,-400.0,0.00035616,2]
[360013798,1746478272276,-690.94,0.00035616,8]
[360013799,1746478272286,-2712.48,0.00035616,8]
[360013800,1746478272295,-400.0,0.00035616,8]
[360013801,1746478272400,-400.0,0.00035616,8]
[360013802,1746478272410,-215.68207253,0.00035616,2]
[360013803,1746478272420,-2500.0,0.00035616,2]
[360013804,1746478272429,-3000.0,0.0003562,24]
[360013805,1746478272439,-3000.0,0.0003563,24]
[360013806,1746478272448,-3000.0,0.0003564,24]
[360013807,1746478272458,-3000.0,0.0003565,24]
[360013808,1746478272468,-3000.0,0.0003566,24]
[360013809,1746478272477,-3000.0,0.0003567,24]
[360013810,1746478272486,-500.0,0.00035673,5]
[360013811,1746478272496,-3000.0,0.0003568,24]
[360013812,1746478272506,-3000.0,0.0003569,24]
[360013813,1746478272515,-3000.0,0.000357,24]
[360013814,1746478272525,-7219.73,0.000357,30]
[360013815,1746478272534,-3326.55,0.000357,7]
[360013816,1746478272543,-3269.495057,0.0003571,24]
[360013817,1746478272553,-600.0,0.0003577,2]
[360013818,1746478272562,-202.365859,0.000358,2]
[360013819,1746478272572,-2000.0,0.00035832,4]
[360013820,1746478272581,-1465.62,0.0003589,8]
[360013821,1746478272591,-277.5207,0.0003589,14]
[360013822,1746478272600,-151.0,0.0003589,14]
[360013823,1746478272609,-400.0,0.0003589,8]
[360013824,1746478272619,-355.80741664,0.0003589,8]
[360013825,1746478272628,-506.86,0.0003589,8]
[360013826,1746478272638,-400.0,0.0003589,8]
[360013827,1746478272648,-650.49,0.0003589,8]
[360013828,1746478272657,-400.0,0.0003589,8]
[360013829,1746478272667,-1120.46,0.0003589,8]
[360013830,1746478272677,-753.58,0.0003589,8]
[360013831,1746478272686,-400.0,0.0003589,8]
[360013832,1746478272696,-507.88,0.0003589,8]
[360013833,1746478272705,-1829.51,0.0003589,8]
[360013834,1746478272715,-400.0,0.0003589,8]
[360013835,1746478272725,-1620.57,0.0003589,8]
[360013836,1746478272735,-592.51,0.0003589,8]
[360013837,1746478272745,-400.0,0.0003589,8]
[360013838,1746478272755,-537.21,0.0003589,8]
[360013839,1746478272765,-400.0,0.0003589,8]
[360013840,1746478272775,-2523.41,0.0003589,8]
[360013841,1746478272785,-400.0,0.0003589,8]
[360013842,1746478272795,-547.87,0.0003589,8]
[360013843,1746478272806,-400.0,0.0003589,8]
[360013844,1746478272815,-543.46,0.0003589,8]
[360013845,1746478272825,-400.0,0.0003589,8]
[360013846,1746478272834,-770.95,0.0003589,8]
[360013847,1746478272844,-827.007674,0.0003589,2]
[360013848,1746478272854,-1081.95,0.0003589,8]
[360013849,1746478272863,-400.0,0.0003589,8]
[360013850,1746478272873,-483.31,0.0003589,8]
[360013851,1746478272882,-1243.4,0.0003589,8]
[360013852,1746478272892,-1098.85,0.0003589,8]
[360013853,1746478272902,-482.85,0.0003589,8]
[360013854,1746478272911,-400.0,0.0003589,8]
[360013855,1746478272921,-400.0,0.0003589,8]
[360013856,1746478272931,-566.0,0.0003589,8]
[360013857,1746478272940,-400.0,0.0003589,8]
[360013858,1746478272950,-445.62520533,0.0003589,8]
[360013859,1746478272960,-400.0,0.0003589,8]
[360013860,1746478272975,-400.0,0.0003589,8]
[360013861,1746478272985,-400.0,0.0003589,8]
[360013862,1746478272994,-1500.0,0.0003589,31]
[360013863,1746478273005,-400.0,0.0003589,8]
[360013864,1746478273015,-709.8,0.0003589,8]
[360013865,1746478273024,-4121.14,0.0003589,8]
[360013866,1746478273034,-207.59588392,0.0003589,8]
[360013867,1746478273045,-812.34,0.0003589,8]
[360013868,1746478273055,-654.51,0.0003589,8]
[360013869,1746478273064,-730.71,0.0003589,8]
[360013870,1746478273074,-400.0,0.0003589,8]
[360013871,1746478273084,-400.0,0.0003589,8]
[360013872,1746478273100,-400.0,0.0003589,8]
[360013873,1746478273121,-2752.23,0.0003589,2]
[360013874,1746478273141,-432.56,0.0003589,8]
[360013875,1746478273163,-762.68,0.0003589,8]
[360013876,1746478273184,-431.94,0.0003589,8]
[360013877,1746478273201,-436.54,0.0003589,8]
[360013878,1746478273221,-400.0,0.0003589,8]
[360013879,1746478273236,-673.29,0.0003589,8]
[360013880,1746478273253,-400.0,0.0003589,8]
[360013881,1746478273274,-1252.09,0.0003589,8]
[360013882,1746478273296,-702.93,0.0003589,8]
[360013883,1746478273309,-400.0,0.0003589,8]
[360013884,1746478273328,-1335.89,0.0003589,8]
[360013885,1746478273343,-400.0,0.0003589,8]
[360013886,1746478273359,-409.22,0.0003589,8]
[360013887,1746478273373,-990.15,0.0003589,8]
[360013888,1746478273387,-400.0,0.0003589,8]
[360013889,1746478273403,-784.71,0.0003589,8]
[360013890,1746478273418,-624.56,0.0003589,8]
[360013891,1746478273433,-411.93,0.0003589,8]
[360013892,1746478273448,-446.32,0.0003589,8]
[360013893,1746478273464,-500.9,0.0003589,8]
[360013894,1746478273480,-827.29,0.0003589,8]
[360013895,1746478273495,-530.84,0.0003589,8]
[360013896,1746478273509,-693.82,0.0003589,8]
[360013897,1746478273525,-612.41,0.0003589,8]
[360013898,1746478273541,-400.0,0.0003589,8]
[360013899,1746478273556,-461.37,0.0003589,8]
[360013900,1746478273570,-430.1,0.0003589,8]
[360013901,1746478273585,-563.39,0.0003589,8]
[360013902,1746478273601,-400.0,0.0003589,8]
[360013903,1746478273616,-400.0,0.0003589,8]
[360013904,1746478273630,-2969.31,0.0003589,8]
[360013905,1746478273645,-401.12,0.0003589,8]
[360013906,1746478273661,-400.0,0.0003589,8]
[360013907,1746478273675,-3050.13,0.0003589,8]
[360013908,1746478273685,-2910.47,0.0003589,8]
[360013909,1746478273695,-773.72,0.0003589,8]
[360013910,1746478273704,-1317.05,0.0003589,8]
[360013911,1746478273714,-2598.82,0.0003589,8]
[360013912,1746478273724,-417.65,0.0003589,8]
[360013913,1746478273734,-552.03,0.0003589,8]
[360013914,1746478273744,-400.0,0.0003589,8]
[360013915,1746478273754,-400.0,0.0003589,8]
[360013916,1746478273764,-510.92,0.0003589,8]
[360013917,1746478273773,-2556.58,0.0003589,8]
[360013918,1746478273783,-400.0,0.0003589,8]
[360013919,1746478273793,-717.05,0.0003589,8]
[360013920,1746478273803,-2500.71,0.0003589,8]
[360013921,1746478273813,-400.0,0.0003589,8]
[360013922,1746478273823,-1021.6,0.0003589,8]
[360013923,1746478273832,-400.0,0.0003589,8]
[360013924,1746478273842,-1929.98,0.0003589,8]
[360013925,1746478273851,-419.74,0.0003589,8]
[360013926,1746478273861,-1671.31,0.0003589,8]
[360013927,1746478273870,-926.06,0.0003589,8]
[360013928,1746478273880,-766.89,0.0003589,8]
[360013929,1746478273890,-1401.18,0.0003589,8]
[360013930,1746478273900,-400.0,0.0003589,8]
[360013931,1746478273910,-2028.41,0.0003589,8]
[360013932,1746478273919,-1584.51,0.0003589,8]
[360013933,1746478273929,-2185.29,0.0003589,8]
[360013934,1746478273938,-1838.89,0.0003589,8]
[360013935,1746478273948,-704.07,0.0003589,8]
[360013936,1746478273957,-400.0,0.0003589,8]
[360013937,1746478273973,-426.69,0.0003589,8]
[360013938,1746478273982,-559.26,0.0003589,8]
[360013939,1746478273992,-1274.13,0.0003589,8]
[360013940,1746478274001,-2367.5,0.0003589,8]
[360013941,1746478274013,-400.0,0.0003589,8]
[360013942,1746478274319,-400.0,0.0003589,8]
[360013943,1746478274337,-1755.88,0.0003589,8]
[360013944,1746478274355,-400.0,0.0003589,8]
[360013945,1746478274365,-400.0,0.0003589,8]
[360013946,1746478274375,-444.31,0.0003589,8]
[360013947,1746478274384,-558.74,0.0003589,8]
[360013948,1746478274394,-1256.74,0.0003589,8]
[360013949,1746478274403,-804.09,0.0003589,8]
[360013950,1746478274413,-8688.02,0.0003589,8]
[360013951,1746478274424,-441.62,0.0003589,8]
[360013952,1746478274434,-598.18,0.0003589,8]
[360013953,1746478274443,-400.0,0.0003589,8]
[360013954,1746478274452,-276.71045899,0.0003589,8]
[360013955,1746478274462,-975.04,0.0003589,8]
[360013956,1746478274471,-411.14,0.0003589,8]
[360013957,1746478274481,-400.0,0.0003589,8]
[360013958,1746478274491,-400.0,0.0003589,8]
[360013959,1746478274500,-400.0,0.0003589,8]
[360013960,1746478274509,-151.0,0.0003589,14]
[360013961,1746478274519,-1817.46,0.0003589,8]
[360013962,1746478274529,-400.0,0.0003589,8]
[360013963,1746478274538,-436.25,0.0003589,8]
[360013964,1746478274547,-460.72,0.0003589,8]
[360013965,1746478274556,-3933.64,0.0003589,8]
[360013966,1746478274566,-491.82,0.0003589,8]
[360013967,1746478274575,-21455.99,0.0003589,8]
[360013968,1746478274584,-400.0,0.0003589,8]
[360013969,1746478274594,-400.0,0.0003589,8]
[360013970,1746478274603,-400.0,0.0003589,8]
[360013971,1746478274612,-699.19,0.0003589,8]
[360013972,1746478274621,-2258.67,0.0003589,8]
[360013973,1746478274631,-518.32,0.0003589,8]
[360013974,1746478274640,-866.11,0.0003589,8]
[360013975,1746478274650,-568.11,0.0003589,8]
[360013976,1746478274659,-1754.39,0.0003589,8]
[360013977,1746478274668,-493.11,0.0003589,8]
[360013978,1746478274677,-2851.87,0.0003589,8]
[360013979,1746478274687,-2650.13,0.0003589,8]
[360013980,1746478274696,-400.76,0.0003589,8]
[360013981,1746478274705,-400.0,0.0003589,8]
[360013982,1746478274715,-1576.25,0.0003589,8]
[360013983,1746478274724,-1372.78,0.0003589,8]
[360013984,1746478274734,-999.53,0.0003589,8]
[360013985,1746478274743,-400.0,0.0003589,8]
[360013986,1746478274753,-516.04,0.0003589,8]
[360013987,1746478274763,-1376.17,0.0003589,8]
[360013988,1746478274772,-661.72,0.0003589,8]
[360013989,1746478274781,-6359.3,0.0003589,8]
[360013990,1746478274791,-940.89,0.0003589,8]
[360013991,1746478274801,-8405.77,0.0003589,8]
[360013992,1746478274810,-1110.72,0.0003589,8]
[360013993,1746478274819,-1647.64,0.0003589,8]
[360013994,1746478274829,-487.22,0.0003589,8]
[360013995,1746478274839,-445.695408,0.0003589,14]
[360013996,1746478274848,-445.695408,0.0003589,14]
[360013997,1746478274858,-378.19587091,0.0003589,2]
[360013998,1746478274867,-690.94,0.0003589,8]
[360013999,1746478274876,-2712.48,0.0003589,8]
[360014000,1746478274886,-400.0,0.0003589,8]
[360014001,1746478274895,-186.98,0.0003589,8]
[360014002,1746478274905,-207.676881,0.0003589,2]
[360014003,1746478274914,-19251.63,0.000359,30]
[360014004,1746478274924,-500.0,0.00035968,7]
[360014005,1746478274933,-2200.0,0.00035968,7]
[360014006,1746478274943,-1981.61475,0.0003598,10]
[360014007,1746478274952,-1000.0,0.00036,10]
[360014008,1746478274964,-299.116884,0.00036,14]
[360014009,1746478274974,-303.430025,0.00036,14]
[360014010,1746478274983,-303.430025,0.00036,14]
[360014011,1746478274992,-160.0,0.00036009,7]
[360014012,1746478275002,-1000.0,0.0003602,10]
[360014013,1746478275012,-1000.0,0.0003604,10]
[360014014,1746478275022,-1000.0,0.0003606,10]
[360014015,1746478275031,-1000.0,0.0003608,10]
[360014016,1746478275043,-1101.267136,0.0003608,10]
[360014017,1746478275052,-1100.0,0.00036082,60]
[360014018,1746478275062,-5000.0,0.00036082,2]
[360014019,1746478275072,-160.0,0.000361,49]
[360014020,1746478275081,-1000.0,0.000361,10]
[360014021,1746478275092,-1000.0,0.000361,10]
[360014022,1746478275101,-467.17393021,0.00036116,2]
[360014023,1746478275110,-601.68674669,0.00036142,2]
[360014024,1746478275120,-224.85,0.00036164,2]
[360014025,1746478275130,-151.0,0.00036164,14]
[360014026,1746478275138,-1465.62,0.00036164,8]
[360014027,1746478275148,-277.5207,0.00036164,14]
[360014028,1746478275158,-400.0,0.00036164,8]
[360014029,1746478275167,-506.86,0.00036164,8]
[360014030,1746478275176,-428.27645219,0.00036164,8]
[360014031,1746478275186,-650.49,0.00036164,8]
[360014032,1746478275195,-400.0,0.00036164,8]
[360014033,1746478275204,-1120.46,0.00036164,8]
[360014034,1746478275213,-151.0,0.00036164,14]
[360014035,1746478275222,-753.58,0.00036164,8]
[360014036,1746478275232,-400.0,0.00036164,8]
[360014037,1746478275241,-507.88,0.00036164,8]
[360014038,1746478275260,-1829.51,0.00036164,8]
[360014039,1746478275272,-400.0,0.00036164,8]
[360014040,1746478275282,-1620.57,0.00036164,8]
[360014041,1746478275292,-592.51,0.00036164,8]
[360014042,1746478275302,-400.0,0.00036164,8]
[360014043,1746478275311,-537.21,0.00036164,8]
[360014044,1746478275321,-400.0,0.00036164,8]
[360014045,1746478275330,-2523.41,0.00036164,8]
[360014046,1746478275340,-400.0,0.00036164,8]
[360014047,1746478275350,-547.87,0.00036164,8]
[360014048,1746478275360,-400.0,0.00036164,8]
[360014049,1746478275370,-543.46,0.00036164,8]
[360014050,1746478275380,-400.0,0.00036164,8]
[360014051,1746478275389,-770.95,0.00036164,8]
[360014052,1746478275399,-1081.95,0.00036164,8]
[360014053,1746478275409,-400.0,0.00036164,8]
[360014054,1746478275418,-483.31,0.00036164,8]
[360014055,1746478275428,-1243.4,0.00036164,8]
[360014056,1746478275437,-1098.85,0.00036164,8]
[360014057,1746478275447,-482.85,0.00036164,8]
[360014058,1746478275456,-400.0,0.00036164,8]
[360014059,1746478275466,-400.0,0.00036164,8]
[360014060,1746478275477,-566.0,0.00036164,8]
[360014061,1746478275487,-177.43101206,0.00036164,8]
[360014062,1746478275496,-400.0,0.00036164,8]
[360014063,1746478275506,-400.0,0.00036164,8]
[360014064,1746478275516,-400.0,0.00036164,8]
[360014065,1746478275525,-1500.0,0.00036164,32]
[360014066,1746478275535,-400.0,0.00036164,8]
[360014067,1746478275545,-709.8,0.00036164,8]
[360014068,1746478275555,-4121.14,0.00036164,8]
[360014069,1746478275564,-812.34,0.00036164,8]
[360014070,1746478275574,-654.51,0.00036164,8]
[360014071,1746478275583,-730.71,0.00036164,8]
[360014072,1746478275593,-400.0,0.00036164,8]
[360014073,1746478275603,-400.0,0.00036164,8]
[360014074,1746478275613,-252.74431176,0.00036164,8]
[360014075,1746478275623,-2752.23,0.00036164,2]
[360014076,1746478275632,-432.56,0.00036164,8]
[360014077,1746478275642,-762.68,0.00036164,8]
[360014078,1746478275652,-431.94,0.00036164,8]
[360014079,1746478275661,-436.54,0.00036164,8]
[360014080,1746478275671,-400.0,0.00036164,8]
[360014081,1746478275681,-673.29,0.00036164,8]
[360014082,1746478275691,-412.06928585,0.00036164,8]
[360014083,1746478275700,-1252.09,0.00036164,8]
[360014084,1746478275709,-702.93,0.00036164,8]
[360014085,1746478275719,-400.0,0.00036164,8]
[360014086,1746478275729,-1335.89,0.00036164,8]
[360014087,1746478275739,-400.0,0.00036164,8]
[360014088,1746478275749,-409.22,0.00036164,8]
[360014089,1746478275758,-990.15,0.00036164,8]
[360014090,1746478275768,-400.0,0.00036164,8]
[360014091,1746478275778,-784.71,0.00036164,8]
[360014092,1746478275787,-624.56,0.00036164,8]
[360014093,1746478275797,-411.93,0.00036164,8]
[360014094,1746478275806,-446.32,0.00036164,8]
[360014095,1746478275817,-500.9,0.00036164,8]
[360014096,1746478275827,-827.29,0.00036164,8]
[360014097,1746478275837,-530.84,0.00036164,8]
[360014098,1746478275847,-693.82,0.00036164,8]
[360014099,1746478275857,-612.41,0.00036164,8]
[360014100,1746478275870,-400.0,0.00036164,8]
[360014101,1746478275880,-461.37,0.00036164,8]
[360014102,1746478275890,-352.803023,0.00036164,14]
[360014103,1746478275900,-352.803023,0.00036164,14]
[360014104,1746478275910,-430.1,0.00036164,8]
[360014105,1746478275920,-563.39,0.00036164,8]
[360014106,1746478275931,-400.0,0.00036164,8]
[360014107,1746478275941,-151.0,0.00036164,14]
[360014108,1746478275951,-477.86314634,0.00036164,8]
[360014109,1746478275961,-151.0,0.00036164,14]
[360014110,1746478275973,-2969.31,0.00036164,8]
[360014111,1746478275983,-401.12,0.00036164,8]
[360014112,1746478275992,-400.0,0.00036164,8]
[360014113,1746478276002,-3050.13,0.00036164,8]
[360014114,1746478276013,-2910.47,0.00036164,8]
[360014115,1746478276023,-773.72,0.00036164,8]
[360014116,1746478276033,-1317.05,0.00036164,8]
[360014117,1746478276044,-2598.82,0.00036164,8]
[360014118,1746478276054,-417.65,0.00036164,8]
[360014119,1746478276063,-552.03,0.00036164,8]
[360014120,1746478276073,-400.0,0.00036164,8]
[360014121,1746478276083,-400.0,0.00036164,8]
[360014122,1746478276093,-510.92,0.00036164,8]
[360014123,1746478276103,-2556.58,0.00036164,8]
[360014124,1746478276112,-400.0,0.00036164,8]
[360014125,1746478276122,-717.05,0.00036164,8]
[360014126,1746478276133,-2500.71,0.00036164,8]
[360014127,1746478276142,-400.0,0.00036164,8]
[360014128,1746478276152,-1021.6,0.00036164,8]
[360014129,1746478276162,-400.0,0.00036164,8]
[360014130,1746478276171,-1929.98,0.00036164,8]
[360014131,1746478276181,-419.74,0.00036164,8]
[360014132,1746478276191,-1671.31,0.00036164,8]
[360014133,1746478276200,-926.06,0.00036164,8]
[360014134,1746478276210,-766.89,0.00036164,8]
[360014135,1746478276220,-1401.18,0.00036164,8]
[360014136,1746478276229,-400.0,0.00036164,8]
[360014137,1746478276239,-2028.41,0.00036164,8]
[360014138,1746478276248,-1584.51,0.00036164,8]
[360014139,1746478276258,-2185.29,0.00036164,8]
[360014140,1746478276268,-1838.89,0.00036164,8]
[360014141,1746478276278,-704.07,0.00036164,8]
[360014142,1746478276287,-400.0,0.00036164,8]
[360014143,1746478276297,-426.69,0.00036164,8]
[360014144,1746478276306,-559.26,0.00036164,8]
[360014145,1746478276316,-1274.13,0.00036164,8]
[360014146,1746478276326,-2367.5,0.00036164,8]
[360014147,1746478276338,-400.0,0.00036164,8]
[360014148,1746478276348,-400.0,0.00036164,8]
[360014149,1746478276358,-1755.88,0.00036164,8]
[360014150,1746478276368,-400.0,0.00036164,8]
[360014151,1746478276378,-400.0,0.00036164,8]
[360014152,1746478276388,-444.31,0.00036164,8]
[360014153,1746478276398,-558.74,0.00036164,8]
[360014154,1746478276407,-1256.74,0.00036164,8]
[360014155,1746478276417,-804.09,0.00036164,8]
[360014156,1746478276426,-8688.02,0.00036164,8]
[360014157,1746478276436,-441.62,0.00036164,8]
[360014158,1746478276445,-598.18,0.00036164,8]
[360014159,1746478276455,-400.0,0.00036164,8]
[360014160,1746478276464,-411.14,0.00036164,8]
[360014161,1746478276474,-975.04,0.00036164,8]
[360014162,1746478276484,-400.0,0.00036164,8]
[360014163,1746478276494,-400.0,0.00036164,8]
[360014164,1746478276503,-400.0,0.00036164,8]
[360014165,1746478276513,-1817.46,0.00036164,8]
[360014166,1746478276523,-529.15487179,0.00036164,8]
[360014167,1746478276532,-436.25,0.00036164,8]
[360014168,1746478276542,-460.72,0.00036164,8]
[360014169,1746478276552,-3933.64,0.00036164,8]
[360014170,1746478276561,-491.82,0.00036164,8]
[360014171,1746478276571,-21455.99,0.00036164,8]
[360014172,1746478276581,-475.87465651,0.00036164,8]
[360014173,1746478276591,-400.0,0.00036164,8]
[360014174,1746478276600,-400.0,0.00036164,8]
[360014175,1746478276610,-699.19,0.00036164,8]
[360014176,1746478276619,-2258.67,0.00036164,8]
[360014177,1746478276629,-518.32,0.00036164,8]
[360014178,1746478276639,-866.11,0.00036164,8]
[360014179,1746478276648,-568.11,0.00036164,8]
[360014180,1746478276658,-1754.39,0.00036164,8]
[360014181,1746478276668,-493.11,0.00036164,8]
[360014182,1746478276678,-2851.87,0.00036164,8]
[360014183,1746478276688,-2650.13,0.00036164,8]
[360014184,1746478276698,-400.76,0.00036164,8]
[360014185,1746478276708,-400.0,0.00036164,8]
[360014186,1746478276717,-1576.25,0.00036164,8]
[360014187,1746478276727,-1372.78,0.00036164,8]
[360014188,1746478276738,-999.53,0.00036164,8]
[360014189,1746478276747,-400.0,0.00036164,8]
[360014190,1746478276758,-516.04,0.00036164,8]
[360014191,1746478276767,-1376.17,0.00036164,8]
[360014192,1746478276777,-661.72,0.00036164,8]
[360014193,1746478276787,-6359.3,0.00036164,8]
[360014194,1746478276797,-940.89,0.00036164,8]
[360014195,1746478276807,-8405.77,0.00036164,8]
[360014196,1746478276817,-1110.72,0.00036164,8]
[360014197,1746478276826,-1647.64,0.00036164,8]
[360014198,1746478276836,-487.22,0.00036164,8]
[360014199,1746478276846,-690.94,0.00036164,8]
[360014200,1746478276856,-2712.48,0.00036164,8]
[360014201,1746478276866,-400.0,0.00036164,8]
[360014202,1746478276876,-501.34714269,0.00036176,34]
[360014203,1746478276885,-151.0,0.00036191,14]
[360014204,1746478276895,-827.007674,0.00036192,2]
[360014205,1746478276905,-177.70608076,0.000362,120]
[360014206,1746478276915,-1000.0,0.00036221,5]
[360014207,1746478276924,-599.32,0.0003626,120]
[360014208,1746478276935,-2000.0,0.00036295,4]
[360014209,1746478276944,-1760.86,0.000363,30]
[360014210,1746478276954,-2500.0,0.00036383,10]
[360014211,1746478276966,-2500.0,0.00036383,10]
[360014212,1746478276977,-2500.0,0.00036383,10]
[360014213,1746478276986,-1370.46106464,0.00036383,10]
[360014214,1746478276996,-164.637409,0.00036383,14]
[360014215,1746478277007,-207.676881,0.00036383,2]
[360014216,1746478277016,-30550.44378417,0.00036438,3]
[360014217,1746478277026,-72306.98511414,0.00036438,2]
[360014218,1746478344892,285.32524133,0.00023,120]
[360014228,1746478883061,-168.27835861,0.00019907,2]
[360014229,1746478920738,-284.6733967,0.00019178,2]
[360014231,1746478958200,-1467.7557264,0.00019108,2]
[360014232,1746478964538,-200.30759347,0.00019108,2]
[360014233,1746478967243,-161.19478468,0.00019108,2]
[360014234,1746478972906,-263.96280926,0.00019108,2]
[360014235,1746478976799,-259.40174932,0.00019108,2]
[360014236,1746478982042,-267.53463743,0.00019108,2]
[360014237,1746478987788,-328.11681638,0.00019108,2]
[360014238,1746478990819,-42.55114806,0.00019108,2]
[360014239,1746479039847,-250.0,0.00019109,2]
[360014240,1746479193102,-275.34304638,0.0001991,2]
[360014241,1746479193125,-565.22429624,0.00020006,2]
[360014242,1746479193146,-1282.66649246,0.0002001,2]
[360014243,1746479193168,-126.20002328,0.00020097,2]
[360014244,1746479233082,-532.17912796,0.00020005,2]
[360014245,1746479233104,-24.79997672,0.00020097,2]
[360014246,1746479233127,-220.07485315,0.00020105,2]
[360014247,1746479237092,-685.07578644,0.00020105,2]
[360014248,1746479238089,-172.63419325,0.00020105,2]
[360014249,1746479351084,-569.0425491,0.00020004,2]
[360014250,1746479351107,-300.0,0.00020103,2]
[360014251,1746479351133,-212.82537284,0.00020104,2]
[360014252,1746479351154,-500.0,0.00020104,2]
[360014253,1746479351177,-500.38738851,0.00020104,2]
[360014254,1746479351201,-247.3626183,0.00020104,2]
[360014255,1746479351233,-1875.74013439,0.00020104,2]
[360014256,1746479351255,-500.0,0.00020104,2]
[360014257,1746479351275,-263.77477913,0.00020104,2]
[360014258,1746479351299,-529.61465651,0.00020104,2]
[360014259,1746479351321,-203.05027566,0.00020104,2]
[360014260,1746479351351,-1875.74013439,0.00020104,2]
[360014261,1746479351374,-257.48454298,0.00020104,2]
[360014262,1746479351396,-500.0,0.00020104,2]
[360014263,1746479351430,-1875.74013439,0.00020104,2]
[360014264,1746479351468,-1875.74013439,0.00020104,2]
[360014265,1746479351501,-1875.74013439,0.00020104,2]
[360014266,1746479351534,-1875.74013439,0.00020104,2]
[360014267,1746479351565,-1875.74013439,0.00020104,2]
[360014268,1746479351594,-1875.74013439,0.00020104,2]